fUSD/lending_fUSD_20250215
["ID","MTS","AMOUNT","RATE_DAILY","PERIOD"]
[353171813,1739626232667,-497.96,0.00010068,2]
[353171815,1739626232677,-503.71,0.00010068,2]
[353171817,1739626232687,-494.75,0.00010068,2]
[353171819,1739626232696,-507.04,0.00010068,2]
[353171821,1739626232705,-491.0,0.00010068,2]
[353171823,1739626232715,-700.0,0.00010068,2]
[353171824,1739626232724,-800.0,0.00010068,2]
[353171827,1739626232737,-337.13,0.00010137,2]
[353171828,1739626232748,-1000.0,0.00010346,2]
[353171830,1739626232757,-282.96,0.00010843,2]
[353171832,1739626232767,-3024.24329725,0.0001091,2]
[353171834,1739626232777,-150.0,0.00010959,2]
[353171836,1739626232786,-150.0,0.00011075,2]
[353171838,1739626232796,-172.3328106,0.00011134,2]
[353171840,1739626232805,-500.0,0.00011164,2]
[353171842,1739626232815,-150.0,0.00011189,2]
[353171844,1739626232824,-150.0,0.00011199,2]
[353171846,1739626232834,-300.0,0.000112,4]
[353171848,1739626232843,-150.0,0.00011214,2]
[353171850,1739626232853,-150.0,0.00011219,2]
[353171852,1739626232862,-697.99547703,0.00011233,2]
[353171855,1739626232881,-3282.33897135,0.00011233,2]
[353171858,1739626232892,-1094.66555162,0.00011233,2]
[353171860,1739626232901,-150.0,0.00011235,2]
[353171862,1739626232911,-150.0,0.00011248,2]
[353171864,1739626232920,-150.0,0.0001125,2]
[353171865,1739626232929,-150.0,0.00011254,2]
[353171867,1739626232938,-148.05773389,0.00011256,2]
[353171870,1739626232950,-1.94226611,0.00011256,2]
[353171872,1739626232961,-150.0,0.0001126,2]
[353171874,1739626232970,-154.53782294,0.00011277,2]
[353171876,1739626232979,-150.0,0.00011277,2]
[353171878,1739626232988,-150.0,0.00011278,2]
[353171880,1739626232997,-120.26930078,0.00011298,2]
[353171882,1739626233009,-29.73069922,0.00011298,2]
[353171884,1739626233018,-254.43929678,0.000113,2]
[353171888,1739626233044,-180.77070322,0.000113,2]
[353171890,1739626233053,-210.62994465,0.000113,4]
[353171917,1739626238120,-389.37005535,0.000113,4]
[353171918,1739626238130,-150.0,0.00011304,2]
[353171919,1739626238140,-5.01165123,0.00011308,2]
[353171920,1739626238180,-144.98834877,0.00011308,2]
[353171921,1739626238190,-150.0,0.00011315,2]
[353171922,1739626238199,-150.0,0.00011325,2]
[353171923,1739626238209,-150.0,0.0001133,2]
[353171924,1739626238219,-150.0,0.00011339,2]
[353171925,1739626238228,-150.0,0.00011342,2]
[353171926,1739626238238,-150.0,0.00011345,2]
[353171927,1739626238247,-5.01164123,0.00011349,2]
[353171928,1739626238270,-144.98835877,0.00011349,2]
[353171929,1739626238280,-150.0,0.0001135,2]
[353171930,1739626238289,-1717.8397758,0.00011352,2]
[353171931,1739626238298,-770.4353912,0.00011352,2]
[353171932,1739626238308,-150.0,0.0001136,2]
[353171933,1739626238317,-150.0,0.0001136,2]
[353171934,1739626238327,-1099.66895685,0.00011361,2]
[353171935,1739626238336,-500.0,0.00011361,2]
[353171936,1739626238346,-500.0,0.00011361,2]
[353171937,1739626238356,-802.24,0.00011361,2]
[353171938,1739626238367,-500.0,0.00011361,2]
[353171939,1739626238376,-500.0,0.00011361,2]
[353171940,1739626238386,-500.0,0.00011361,2]
[353171941,1739626238395,-918.52,0.00011361,2]
[353171942,1739626238404,-943.33,0.00011361,2]
[353171943,1739626238414,-787.87,0.00011361,2]
[353171944,1739626238424,-506.93,0.00011361,2]
[353171945,1739626238433,-500.0,0.00011361,2]
[353171946,1739626238443,-1127.78,0.00011361,2]
[353171947,1739626238453,-601.74,0.00011361,2]
[353171948,1739626238462,-1080.71,0.00011361,2]
[353171949,1739626238472,-591.27,0.00011361,2]
[353171950,1739626238482,-500.0,0.00011361,2]
[353171951,1739626238491,-500.0,0.00011361,2]
[353171953,1739626238502,-500.0,0.00011361,2]
[353171955,1739626238512,-738.41,0.00011361,2]
[353171957,1739626238521,-1153.33,0.00011361,2]
[353171959,1739626238530,-500.0,0.00011361,2]
[353171960,1739626238540,-500.0,0.00011361,2]
[353171961,1739626238549,-500.0,0.00011361,2]
[353171962,1739626238559,-594.41,0.00011361,2]
[353171963,1739626238568,-500.0,0.00011361,2]
[353171964,1739626238578,-500.0,0.00011361,2]
[353171965,1739626238587,-497.62,0.00011361,2]
[353171966,1739626238596,-1125.32,0.00011361,2]
[353171967,1739626238605,-566.74,0.00011361,2]
[353171968,1739626238615,-810.58,0.00011361,2]
[353171969,1739626238624,-500.0,0.00011361,2]
[353171970,1739626238633,-520.56292999,0.00011361,2]
[353171971,1739626238642,-3767.27899363,0.00011362,3]
[353171972,1739626238653,-33851.64718728,0.00011362,3]
[353171973,1739626238664,-8775.99133458,0.00011362,3]
[353171974,1739626238674,-494.78,0.00011362,2]
[353171975,1739626238684,-502.11637147,0.00011362,2]
[353171976,1739626238694,-506.29180934,0.00011362,2]
[353171977,1739626238703,-415.85060618,0.00011362,2]
[353171978,1739626238713,-502.94955587,0.00011362,2]
[353171979,1739626238723,-94.01711349,0.00011362,2]
[353171980,1739626238737,-405.98288651,0.00011362,2]
[353171981,1739626238747,-84.37908524,0.00011362,2]
[353171982,1739626238763,-288.49401412,0.00011362,2]
[353171983,1739626238773,-500.0,0.00011362,2]
[353171984,1739626238782,-500.0,0.00011362,2]
[353171985,1739626238791,-500.0,0.00011362,2]
[353171986,1739626238800,-500.0,0.00011362,2]
[353171987,1739626238810,-500.0,0.00011362,2]
[353171988,1739626238823,-200.0,0.00011362,2]
[353171989,1739626238832,-500.0,0.00011362,2]
[353171990,1739626238841,-158.09,0.00011362,2]
[353171991,1739626238851,-500.0,0.00011362,2]
[353171992,1739626238860,-37.57216688,0.00011362,2]
[353171993,1739626238872,-462.42783312,0.00011362,2]
[353171994,1739626238881,-500.0,0.00011362,2]
[353171995,1739626238891,-77.16116781,0.00011362,2]
[353171996,1739626238971,-422.83883219,0.00011362,2]
[353171997,1739626238980,-71.53112281,0.00011362,2]
[353171998,1739626238991,-268.28055403,0.00011362,2]
[353172000,1739626240459,-500.0,0.00011361,2]
[353172001,1739626240470,-160.18832316,0.00011362,2]
[353172002,1739626240480,-198.99231798,0.00011362,2]
[353172003,1739626240491,-301.00768202,0.00011362,2]
[353172004,1739626240501,-500.0,0.00011362,2]
[353172005,1739626240510,-511.82,0.00011362,2]
[353172006,1739626240519,-314.22643003,0.00011362,2]
[353172007,1739626240542,-185.77356997,0.00011362,2]
[353172008,1739626240553,-500.0,0.00011362,2]
[353172009,1739626240562,-500.0,0.00011362,2]
[353172010,1739626240572,-500.0,0.00011362,2]
[353172011,1739626240582,-500.0,0.00011362,2]
[353172012,1739626240592,-500.0,0.00011362,2]
[353172013,1739626240603,-457.02643007,0.00011362,2]
[353172014,1739626240614,-42.97356993,0.00011362,2]
[353172015,1739626240623,-500.0,0.00011362,2]
[353172017,1739626240632,-500.0,0.00011362,2]
[353172018,1739626240641,-500.0,0.00011362,2]
[353172020,1739626240652,-500.0,0.00011362,2]
[353172021,1739626240661,-151.0,0.00011362,2]
[353172023,1739626240671,-500.0,0.00011362,2]
[353172024,1739626240680,-500.0,0.00011362,2]
[353172026,1739626240689,-500.0,0.00011362,2]
[353172027,1739626240698,-396.94344538,0.00011362,2]
[353172029,1739626240714,-103.05655462,0.00011362,2]
[353172031,1739626240723,-500.0,0.00011362,2]
[353172033,1739626240733,-108.29194788,0.00011362,2]
[353172036,1739626240767,-391.70805212,0.00011362,2]
[353172039,1739626240776,-69.1500029,0.00011362,2]
[353172090,1739626243315,-306.76314966,0.0001128,2]
[353172091,1739626243325,-345.75671834,0.00011301,2]
[353172092,1739626243491,-151.62328166,0.00011301,2]
[353172093,1739626243501,-328.90264922,0.00011362,2]
[353172155,1739626246366,-101.94734788,0.00011362,2]
[353172157,1739626246376,-363.3408785,0.00011362,2]
[353172159,1739626246386,-181.77177362,0.00011362,2]
[353172161,1739626246399,-48.80822638,0.00011362,2]
[353172163,1739626246409,-397.37,0.00011362,2]
[353172165,1739626246419,-81.2203391,0.00011362,2]
[353172197,1739626263330,254.66,8.536e-05,2]
[353172200,1739626388725,1222.17206092,6.781e-05,7]
[353172201,1739626389575,583.91765972,6.781e-05,7]
[353172209,1739626764575,-28627.1702,8.836e-05,2]
[353172210,1739626810850,-1701.6262,8.973e-05,2]
[353172211,1739626810877,-1950.0346,8.973e-05,2]
[353172214,1739626918186,653.2871334,0.0002,120]
[353172215,1739626969685,940.0,0.0002,120]
[353172216,1739627133332,1663.20585634,0.00010098,10]
[353172218,1739627259012,1348.3392,8.836e-05,2]
[353172219,1739627259040,1372.8298,8.836e-05,2]
[353172220,1739627334857,241.92,8.34e-05,2]
[353172239,1739627432394,-474.82116813,8.836e-05,2]
[353172240,1739627432406,-2197.77007055,8.836e-05,2]
[353172241,1739627432459,-1229.68684722,8.836e-05,2]
[353172242,1739627432578,-757.8900005,8.836e-05,2]
[353172243,1739627432591,-510.674481,8.836e-05,2]
[353172244,1739627432602,-556.32756,8.836e-05,2]
[353172245,1739627432613,-25487.2448198,8.836e-05,2]
[353172246,1739627432624,-1248.44266962,8.836e-05,2]
[353172247,1739627432636,-12628.80218318,8.836e-05,2]
[353172248,1739627432645,-496.94,0.00010068,2]
[353172249,1739627432654,-508.66,0.00010068,2]
[353172250,1739627432664,-500.58,0.00010068,2]
[353172251,1739627432674,-497.56,0.00010068,2]
[353172252,1739627432684,-508.07,0.00010068,2]
[353172253,1739627432694,-493.23,0.00010068,2]
[353172254,1739627432703,-494.71,0.00010068,2]
[353172255,1739627432713,-503.19,0.00010068,2]
[353172256,1739627432723,-504.2,0.00010068,2]
[353172257,1739627432733,-502.06,0.00010068,2]
[353172258,1739627432743,-503.05,0.00010068,2]
[353172259,1739627432753,-504.82,0.00010068,2]
[353172261,1739627432762,-506.29,0.00010068,2]
[353172263,1739627432771,-503.49,0.00010068,2]
[353172265,1739627432780,-502.93,0.00010068,2]
[353172267,1739627432789,-510.0,0.00010068,2]
[353172269,1739627432798,-497.41,0.00010068,2]
[353172271,1739627432808,-495.43,0.00010068,2]
[353172273,1739627432817,-496.5,0.00010068,2]
[353172275,1739627432826,-491.43,0.00010068,2]
[353172277,1739627432836,-498.97,0.00010068,2]
[353172279,1739627432845,-502.19,0.00010068,2]
[353172281,1739627432854,-503.56,0.00010068,2]
[353172283,1739627432864,-498.37,0.00010068,2]
[353172286,1739627432873,-505.34,0.00010068,2]
[353172289,1739627432882,-498.12,0.00010068,2]
[353172292,1739627432891,-496.76,0.00010068,2]
[353172294,1739627432900,-498.26,0.00010068,2]
[353172296,1739627432909,-507.34,0.00010068,2]
[353172298,1739627432918,-800.0,0.00010068,2]
[353172300,1739627432928,-474.82,0.00010266,2]
[353172302,1739627432937,-1000.0,0.0001028,2]
[353172303,1739627432946,-362.07,0.00010295,2]
[353172305,1739627432955,-241.92,0.00010604,2]
[353172307,1739627432964,-169.32,0.00010655,2]
[353172309,1739627432972,-150.0,0.00010948,2]
[353172311,1739627432981,-152.65147296,0.00010948,2]
[353172312,1739627432990,-150.0,0.00010948,2]
[353172313,1739627433000,-150.0,0.00011052,2]
[353172314,1739627433008,-150.0,0.00011053,2]
[353172315,1739627433017,-150.0,0.00011103,2]
[353172316,1739627433026,-150.0,0.00011104,2]
[353172317,1739627433036,-150.0,0.00011104,2]
[353172319,1739627433045,-150.0,0.00011122,2]
[353172321,1739627433054,-150.0,0.00011134,2]
[353172323,1739627433064,-150.0,0.00011163,2]
[353172325,1739627433074,-700.0,0.00011164,2]
[353172327,1739627433084,-500.0,0.00011164,2]
[353172329,1739627433093,-150.0,0.0001118,2]
[353172331,1739627433103,-150.0,0.00011186,2]
[353172333,1739627433112,-150.0,0.00011187,2]
[353172335,1739627433122,-150.0,0.00011189,2]
[353172337,1739627433132,-150.0,0.0001119,2]
[353172339,1739627433142,-150.0,0.0001119,2]
[353172341,1739627433151,-150.0,0.00011195,2]
[353172343,1739627433163,-150.0,0.00011199,2]
[353172345,1739627433173,-775.49,0.000112,2]
[353172347,1739627433183,-396.78,0.000112,2]
[353172349,1739627433192,-400.0,0.000112,4]
[353172351,1739627433202,-150.0,0.00011208,2]
[353172353,1739627433212,-150.0,0.00011211,2]
[353172355,1739627433221,-150.0,0.00011212,2]
[353172357,1739627433231,-150.0,0.00011213,2]
[353172359,1739627433240,-150.0,0.00011215,2]
[353172361,1739627433251,-150.0,0.00011222,2]
[353172363,1739627433261,-150.0,0.00011225,2]
[353172366,1739627433280,-150.0,0.00011234,2]
[353172394,1739627433291,-150.0,0.00011235,2]
[353172396,1739627433555,-150.0,0.00011235,2]
[353172398,1739627433565,-150.0,0.00011239,2]
[353172400,1739627433574,-150.0,0.00011244,2]
[353172402,1739627433583,-150.0,0.00011248,2]
[353172404,1739627433593,-73802.0,0.00011249,2]
[353172406,1739627433602,-150.0,0.00011249,2]
[353172408,1739627433612,-150.0,0.00011251,2]
[353172410,1739627433621,-150.0,0.00011253,2]
[353172412,1739627433631,-150.0,0.00011256,2]
[353172414,1739627433641,-154.53782294,0.00011261,2]
[353172416,1739627433651,-150.0,0.00011264,2]
[353172418,1739627433661,-150.0,0.00011265,2]
[353172420,1739627433671,-150.0,0.00011271,2]
[353172422,1739627433680,-150.0,0.00011278,2]
[353172424,1739627433690,-150.0,0.00011283,2]
[353172426,1739627433699,-150.0,0.00011284,2]
[353172428,1739627433708,-150.0,0.00011286,2]
[353172430,1739627433718,-150.0,0.00011287,2]
[353172432,1739627433727,-150.0,0.00011287,2]
[353172434,1739627433737,-150.0,0.00011289,2]
[353172436,1739627433747,-150.0,0.00011295,2]
[353172438,1739627433756,-150.0,0.00011295,2]
[353172440,1739627433765,-150.0,0.00011295,2]
[353172441,1739627433775,-391.69,0.000113,2]
[353172442,1739627433784,-900.0,0.000113,4]
[353172443,1739627433794,-1000.0,0.00011301,2]
[353172444,1739627433803,-150.0,0.00011302,2]
[353172445,1739627433812,-150.0,0.00011306,2]
[353172446,1739627433823,-150.0,0.00011307,2]
[353172447,1739627433833,-150.0,0.00011314,2]
[353172448,1739627433842,-150.0,0.00011315,2]
[353172449,1739627433851,-150.0,0.00011316,2]
[353172450,1739627433860,-150.0,0.00011318,2]
[353172451,1739627433869,-150.0,0.00011336,2]
[353172452,1739627433879,-150.0,0.00011341,2]
[353172453,1739627433888,-150.0,0.00011341,2]
[353172454,1739627433897,-150.0,0.00011346,2]
[353172455,1739627433907,-1364.8311502,0.00011352,2]
[353172456,1739627433916,-864.9966057,0.00011352,2]
[353172457,1739627433925,-150.0,0.0001136,2]
[353172458,1739627433934,-574.75091652,0.0001136,2]
[353172459,1739627433943,-768.81,0.0001136,2]
[353172460,1739627433952,-711.47,0.0001136,2]
[353172461,1739627433961,-904.03,0.0001136,2]
[353172462,1739627433970,-500.0,0.0001136,2]
[353172463,1739627433980,-1080.79,0.0001136,2]
[353172464,1739627433989,-297.98,0.0001136,2]
[353172465,1739627433999,-569.65,0.0001136,2]
[353172466,1739627434008,-500.0,0.0001136,2]
[353172467,1739627434018,-500.0,0.0001136,2]
[353172468,1739627434027,-543.12,0.0001136,2]
[353172469,1739627434037,-500.0,0.0001136,2]
[353172470,1739627434046,-500.0,0.0001136,2]
[353172471,1739627434055,-2966.02563743,0.00011361,3]
[353172522,1739627440439,-496.34,0.00011199,2]
[353172523,1739627440450,-500.0,0.0001136,2]
[353172524,1739627440461,-23197.45875775,0.00011361,3]
[353172525,1739627440472,-500.0,0.00011361,2]
[353172526,1739627440483,-500.0,0.00011361,2]
[353172527,1739627440495,-500.0,0.00011361,2]
[353172528,1739627440506,-500.0,0.00011361,2]
[353172529,1739627440518,-284.34485602,0.00011361,2]
[353172530,1739627440529,-500.0,0.00011361,2]
[353172531,1739627440540,-500.0,0.00011361,2]
[353172532,1739627440551,-205.41,0.00011361,2]
[353172533,1739627440562,-500.0,0.00011361,2]
[353172534,1739627440573,-500.0,0.00011361,2]
[353172535,1739627440585,-500.0,0.00011361,2]
[353172536,1739627440595,-500.0,0.00011361,2]
[353172537,1739627440607,-500.0,0.00011361,2]
[353172538,1739627440617,-479.34,0.00011361,2]
[353172539,1739627440629,-274.22,0.00011361,2]
[353172540,1739627440641,-500.0,0.00011361,2]
[353172541,1739627440652,-500.0,0.00011361,2]
[353172542,1739627440662,-500.0,0.00011361,2]
[353172543,1739627440673,-500.0,0.00011361,2]
[353172544,1739627440683,-500.0,0.00011361,2]
[353172545,1739627440693,-500.0,0.00011361,2]
[353172546,1739627440703,-470.07,0.00011361,2]
[353172547,1739627440713,-500.0,0.00011361,2]
[353172548,1739627440723,-500.0,0.00011361,2]
[353172549,1739627440733,-500.0,0.00011361,2]
[353172550,1739627440744,-500.0,0.00011361,2]
[353172551,1739627440756,-214.06,0.00011361,2]
[353172552,1739627440769,-447.35,0.00011361,2]
[353172553,1739627440781,-500.0,0.00011361,2]
[353172554,1739627440791,-634.84,0.00011361,2]
[353172555,1739627440801,-500.0,0.00011361,2]
[353172556,1739627440811,-500.0,0.00011361,2]
[353172557,1739627440820,-500.0,0.00011361,2]
[353172558,1739627440830,-500.0,0.00011361,2]
[353172559,1739627440841,-500.0,0.00011361,2]
[353172560,1739627440852,-500.0,0.00011361,2]
[353172561,1739627440863,-500.0,0.00011361,2]
[353172562,1739627440874,-500.0,0.00011361,2]
[353172563,1739627440885,-500.0,0.00011361,2]
[353172564,1739627440895,-500.0,0.00011361,2]
[353172565,1739627440905,-500.0,0.00011361,2]
[353172566,1739627440915,-500.0,0.00011361,2]
[353172567,1739627440925,-500.0,0.00011361,2]
[353172568,1739627440936,-500.0,0.00011361,2]
[353172569,1739627440946,-500.0,0.00011361,2]
[353172570,1739627440956,-500.0,0.00011361,2]
[353172571,1739627440966,-500.0,0.00011361,2]
[353172572,1739627440977,-500.0,0.00011361,2]
[353172573,1739627440989,-1543.36,0.00011361,2]
[353172574,1739627441001,-500.0,0.00011361,2]
[353172575,1739627441011,-500.0,0.00011361,2]
[353172576,1739627441021,-500.0,0.00011361,2]
[353172577,1739627441032,-500.0,0.00011361,2]
[353172578,1739627441042,-261.04434214,0.00011361,2]
[353172579,1739627441052,-500.0,0.00011361,2]
[353172580,1739627441062,-629.33,0.00011361,2]
[353172581,1739627441072,-156.138995,0.00011361,2]
[353172582,1739627441083,-500.0,0.00011361,2]
[353172583,1739627441093,-500.0,0.00011361,2]
[353172584,1739627441104,-500.0,0.00011361,2]
[353172585,1739627441115,-500.0,0.00011361,2]
[353172586,1739627441125,-500.0,0.00011361,2]
[353172587,1739627441136,-500.0,0.00011361,2]
[353172588,1739627441146,-151.71724,0.00011361,2]
[353172589,1739627441157,-350.55,0.00011361,2]
[353172590,1739627441171,-500.0,0.00011361,2]
[353172591,1739627441181,-500.0,0.00011361,2]
[353172592,1739627441192,-500.0,0.00011361,2]
[353172593,1739627441202,-500.0,0.00011361,2]
[353172594,1739627441215,-500.0,0.00011361,2]
[353172595,1739627441226,-156.626831,0.00011361,2]
[353172596,1739627441237,-500.0,0.00011361,2]
[353172597,1739627441250,-256.23,0.00011361,2]
[353172598,1739627441261,-500.0,0.00011361,2]
[353172599,1739627441272,-500.0,0.00011361,2]
[353172600,1739627441282,-500.0,0.00011361,2]
[353172601,1739627441292,-500.0,0.00011361,2]
[353172602,1739627441303,-620.58,0.00011361,2]
[353172603,1739627441313,-612.89,0.00011361,2]
[353172604,1739627441323,-500.0,0.00011361,2]
[353172605,1739627441334,-465.09665109,0.00011361,2]
[353172606,1739627441344,-500.0,0.00011361,2]
[353172607,1739627441354,-287.90489347,0.00011361,2]
[353172608,1739627441365,-500.0,0.00011361,2]
[353172609,1739627441376,-500.0,0.00011361,2]
[353172610,1739627441387,-500.0,0.00011361,2]
[353172611,1739627441397,-500.0,0.00011361,2]
[353172612,1739627441407,-500.0,0.00011361,2]
[353172613,1739627441417,-500.0,0.00011361,2]
[353172614,1739627441428,-500.0,0.00011361,2]
[353172615,1739627441439,-525.91,0.00011361,2]
[353172616,1739627441449,-500.0,0.00011361,2]
[353172617,1739627441460,-500.0,0.00011361,2]
[353172618,1739627441471,-236.33406419,0.00011361,2]
[353172619,1739627441481,-500.0,0.00011361,2]
[353172620,1739627441492,-500.0,0.00011361,2]
[353172621,1739627441504,-500.0,0.00011361,2]
[353172622,1739627441516,-500.0,0.00011361,2]
[353172623,1739627441526,-500.0,0.00011361,2]
[353172624,1739627441537,-500.0,0.00011361,2]
[353172625,1739627441547,-500.0,0.00011361,2]
[353172626,1739627441558,-500.0,0.00011361,2]
[353172627,1739627441569,-500.0,0.00011361,2]
[353172628,1739627441580,-500.0,0.00011361,2]
[353172629,1739627441591,-262.41,0.00011361,2]
[353172630,1739627441601,-500.0,0.00011361,2]
[353172631,1739627441613,-500.0,0.00011361,2]
[353172632,1739627441624,-500.0,0.00011361,2]
[353172633,1739627441634,-500.0,0.00011361,2]
[353172634,1739627441645,-595.34,0.00011361,2]
[353172635,1739627441656,-151.0,0.00011361,2]
[353172636,1739627441667,-500.0,0.00011361,2]
[353172637,1739627441680,-500.0,0.00011361,2]
[353172638,1739627441690,-500.0,0.00011361,2]
[353172639,1739627441701,-500.0,0.00011361,2]
[353172640,1739627441712,-500.0,0.00011361,2]
[353172641,1739627441723,-500.0,0.00011361,2]
[353172642,1739627441734,-500.0,0.00011361,2]
[353172643,1739627441745,-500.0,0.00011361,2]
[353172644,1739627441756,-500.0,0.00011361,2]
[353172645,1739627441769,-500.0,0.00011361,2]
[353172646,1739627441779,-500.0,0.00011361,2]
[353172647,1739627441791,-500.0,0.00011361,2]
[353172648,1739627441802,-500.0,0.00011361,2]
[353172649,1739627441813,-509.6,0.00011361,2]
[353172650,1739627441824,-500.0,0.00011361,2]
[353172651,1739627441835,-500.0,0.00011361,2]
[353172652,1739627441845,-500.0,0.00011361,2]
[353172653,1739627441855,-500.0,0.00011361,2]
[353172654,1739627441866,-500.61161322,0.00011361,2]
[353172655,1739627441878,-500.0,0.00011361,2]
[353172656,1739627441888,-500.0,0.00011361,2]
[353172657,1739627441898,-500.0,0.00011361,2]
[353172658,1739627441909,-500.0,0.00011361,2]
[353172659,1739627441919,-500.0,0.00011361,2]
[353172660,1739627441931,-502.63037334,0.00011361,2]
[353172661,1739627441942,-500.0,0.00011361,2]
[353172662,1739627441953,-500.0,0.00011361,2]
[353172663,1739627441965,-500.0,0.00011361,2]
[353172664,1739627441977,-500.0,0.00011361,2]
[353172665,1739627441988,-500.0,0.00011361,2]
[353172666,1739627442004,-409.42,0.00011361,2]
[353172667,1739627442015,-500.0,0.00011361,2]
[353172668,1739627442027,-500.0,0.00011361,2]
[353172669,1739627442038,-500.0,0.00011361,2]
[353172670,1739627442049,-500.0,0.00011361,2]
[353172671,1739627442060,-500.0,0.00011361,2]
[353172672,1739627442072,-812.05,0.00011361,2]
[353172673,1739627442083,-500.0,0.00011361,2]
[353172674,1739627442094,-500.0,0.00011361,2]
[353172675,1739627442106,-500.0,0.00011361,2]
[353172676,1739627442117,-500.0,0.00011361,2]
[353172677,1739627442127,-500.0,0.00011361,2]
[353172678,1739627442138,-500.0,0.00011361,2]
[353172679,1739627442150,-500.0,0.00011361,2]
[353172680,1739627442164,-500.0,0.00011361,2]
[353172681,1739627442175,-151.0,0.00011361,2]
[353172682,1739627442187,-709.87,0.00011361,2]
[353172683,1739627442198,-500.0,0.00011361,2]
[353172684,1739627442208,-600.9,0.00011361,2]
[353172685,1739627442218,-162.83,0.00011361,2]
[353172686,1739627442228,-500.0,0.00011361,2]
[353172687,1739627442239,-500.0,0.00011361,2]
[353172688,1739627442254,-500.0,0.00011361,2]
[353172689,1739627442264,-1321.82,0.00011361,2]
[353172690,1739627442275,-500.0,0.00011361,2]
[353172691,1739627442285,-500.0,0.00011361,2]
[353172692,1739627442296,-811.0,0.00011361,2]
[353172693,1739627442306,-660.28,0.00011361,2]
[353172694,1739627442316,-245.84,0.00011361,2]
[353172695,1739627442327,-639.89,0.00011361,2]
[353172696,1739627442338,-863.52,0.00011361,2]
[353172697,1739627442348,-224.82,0.00011361,2]
[353172698,1739627442359,-447.94,0.00011361,2]
[353172699,1739627442370,-577.08,0.00011361,2]
[353172700,1739627442381,-500.0,0.00011361,2]
[353172701,1739627442392,-500.0,0.00011361,2]
[353172702,1739627442403,-766.58,0.00011361,2]
[353172703,1739627442413,-522.66,0.00011361,2]
[353172704,1739627442423,-500.0,0.00011361,2]
[353172705,1739627442433,-500.0,0.00011361,2]
[353172706,1739627442444,-2570.44,0.00011361,2]
[353172707,1739627442454,-500.0,0.00011361,2]
[353172708,1739627442464,-718.89,0.00011361,2]
[353172709,1739627442475,-512.44,0.00011361,2]
[353172710,1739627442485,-500.0,0.00011361,2]
[353172711,1739627442495,-175.1,0.00011361,2]
[353172712,1739627442784,-500.0,0.00011361,2]
[353172713,1739627442794,-615.91,0.00011361,2]
[353172714,1739627442804,-549.78,0.00011361,2]
[353172715,1739627442814,-500.0,0.00011361,2]
[353172716,1739627442823,-661.35,0.00011361,2]
[353172717,1739627442833,-470.8,0.00011361,2]
[353172718,1739627442843,-832.86,0.00011361,2]
[353172719,1739627442853,-500.0,0.00011361,2]
[353172720,1739627442862,-500.0,0.00011361,2]
[353172721,1739627442872,-500.0,0.00011361,2]
[353172722,1739627442882,-500.0,0.00011361,2]
[353172723,1739627442891,-1066.05,0.00011361,2]